fUSD/lending_fUSD_20260121
["ID","MTS","AMOUNT","RATE_DAILY","PERIOD"]
[402898871,1768961434486,-500.0,0.00017517,2]
[402898872,1768961434495,-151.0,0.00017517,2]
[402898873,1768961434504,-500.0,0.00017517,2]
[402898874,1768961434513,-151.0,0.00017517,2]
[402898875,1768961434522,-500.0,0.00017517,2]
[402898876,1768961434531,-500.0,0.00017517,2]
[402898877,1768961434540,-151.0,0.00017517,2]
[402898878,1768961434550,-500.0,0.00017517,2]
[402898879,1768961434559,-151.0,0.00017517,2]
[402898880,1768961434568,-500.0,0.00017517,2]
[402898881,1768961434577,-500.0,0.00017517,2]
[402898882,1768961434587,-151.0,0.00017517,2]
[402898883,1768961434596,-500.0,0.00017517,2]
[402898884,1768961434605,-500.0,0.00017517,2]
[402898885,1768961434614,-500.0,0.00017517,2]
[402898886,1768961434623,-151.0,0.00017517,2]
[402898887,1768961434633,-151.0,0.00017517,2]
[402898888,1768961434641,-500.0,0.00017517,2]
[402898889,1768961434652,-151.0,0.00017517,2]
[402898890,1768961434665,-500.0,0.00017517,2]
[402898891,1768961434674,-500.0,0.00017517,2]
[402898892,1768961434683,-151.0,0.00017517,2]
[402898893,1768961434692,-151.0,0.00017517,2]
[402898894,1768961434702,-500.0,0.00017517,2]
[402898895,1768961434711,-500.0,0.00017517,2]
[402898896,1768961434721,-500.0,0.00017517,2]
[402898897,1768961434732,-151.0,0.00017517,2]
[402898898,1768961434742,-151.0,0.00017517,2]
[402898899,1768961434751,-500.0,0.00017517,2]
[402898900,1768961434760,-500.0,0.00017517,2]
[402898901,1768961434769,-500.0,0.00017517,2]
[402898902,1768961434778,-151.0,0.00017517,2]
[402898903,1768961434787,-195.23322278,0.00017517,2]
[402898904,1768961434796,-196.73716484,0.00017517,2]
[402898905,1768961434805,-500.0,0.00017517,2]
[402898906,1768961434815,-500.0,0.00017517,2]
[402898907,1768961434823,-151.0,0.00017517,2]
[402898908,1768961434832,-500.0,0.00017517,2]
[402898909,1768961434841,-500.0,0.00017517,2]
[402898910,1768961434851,-500.0,0.00017517,2]
[402898911,1768961434860,-250.0,0.00017517,2]
[402898912,1768961434869,-151.0,0.00017517,2]
[402898913,1768961434878,-500.0,0.00017517,2]
[402898914,1768961434887,-500.0,0.00017517,2]
[402898915,1768961434896,-250.0,0.00017517,2]
[402898916,1768961434906,-500.0,0.00017517,2]
[402898917,1768961434915,-151.0,0.00017517,2]
[402898918,1768961434925,-500.0,0.00017517,2]
[402898919,1768961434934,-500.0,0.00017517,2]
[402898920,1768961434943,-250.0,0.00017517,2]
[402898921,1768961434953,-500.0,0.00017517,2]
[402898922,1768961434962,-500.0,0.00017517,2]
[402898923,1768961434971,-500.0,0.00017517,2]
[402898924,1768961434980,-500.0,0.00017517,2]
[402898925,1768961434990,-250.0,0.00017517,2]
[402898926,1768961434999,-500.0,0.00017517,2]
[402898927,1768961435008,-500.0,0.00017517,2]
[402898928,1768961435017,-500.0,0.00017517,2]
[402898929,1768961435026,-500.0,0.00017517,2]
[402898930,1768961435036,-250.0,0.00017517,2]
[402898931,1768961435046,-250.0,0.00017517,2]
[402898932,1768961435055,-250.0,0.00017517,2]
[402898933,1768961435064,-250.0,0.00017517,2]
[402898934,1768961435073,-214.21565645,0.00017517,2]
[402898935,1768961435082,-533.88981491,0.00017517,2]
[402898936,1768961435091,-250.0,0.00017517,2]
[402898937,1768961435101,-250.0,0.00017517,2]
[402898938,1768961435110,-250.0,0.00017517,2]
[402898939,1768961435120,-250.0,0.00017517,2]
[402898940,1768961435129,-250.0,0.00017517,2]
[402898941,1768961435138,-320.3408704,0.00017517,2]
[402898942,1768961435148,-500.0,0.00017517,2]
[402898943,1768961435157,-500.0,0.00017517,2]
[402898944,1768961435166,-500.0,0.00017517,2]
[402898945,1768961435175,-500.0,0.00017517,2]
[402898946,1768961435184,-500.0,0.00017517,2]
[402898947,1768961435194,-200.0,0.00017517,2]
[402898948,1768961435203,-500.0,0.00017517,2]
[402898949,1768961435213,-500.0,0.00017517,2]
[402898950,1768961435222,-500.0,0.00017517,2]
[402898951,1768961435231,-500.0,0.00017517,2]
[402898952,1768961435240,-500.0,0.00017517,2]
[402898953,1768961435249,-500.0,0.00017517,2]
[402898954,1768961435259,-500.0,0.00017517,2]
[402898955,1768961435269,-500.0,0.00017517,2]
[402898956,1768961435278,-500.0,0.00017517,2]
[402898957,1768961435288,-500.0,0.00017517,2]
[402898958,1768961435297,-500.0,0.00017517,2]
[402898959,1768961435306,-500.0,0.00017517,2]
[402898960,1768961435315,-500.0,0.00017517,2]
[402898961,1768961435324,-748.80410657,0.00017517,2]
[402898962,1768961435333,-500.0,0.00017517,2]
[402898963,1768961435342,-500.0,0.00017517,2]
[402898964,1768961435351,-500.0,0.00017517,2]
[402898965,1768961435360,-500.0,0.00017517,2]
[402898966,1768961435369,-521.33337751,0.00017517,2]
[402898967,1768961435378,-500.0,0.00017517,2]
[402898968,1768961435387,-500.0,0.00017517,2]
[402898969,1768961435396,-200.0,0.00017517,2]
[402898970,1768961435406,-500.0,0.00017517,2]
[402898971,1768961435414,-500.0,0.00017517,2]
[402898972,1768961435423,-500.0,0.00017517,2]
[402898973,1768961435432,-500.0,0.00017517,2]
[402898974,1768961435441,-500.0,0.00017517,2]
[402898975,1768961435451,-500.0,0.00017517,2]
[402898976,1768961435461,-500.0,0.00017517,2]
[402898977,1768961435471,-500.0,0.00017517,2]
[402898978,1768961435483,-500.0,0.00017517,2]
[402898979,1768961435492,-500.0,0.00017517,2]
[402898980,1768961435501,-500.0,0.00017517,2]
[402898981,1768961435511,-909.04,0.00017518,2]
[402898982,1768961435522,-19021.10720384,0.00017528,2]
[402898983,1768961435531,-727.0,0.00017535,2]
[402898984,1768961435540,-280.0,0.00017548,2]
[402898985,1768961435549,-181.08010149,0.00017611,2]
[402898986,1768961435559,-155.8458562,0.00017611,2]
[402898987,1768961435568,-1000.0,0.00017621,2]
[402898988,1768961435577,-448.19,0.00017652,2]
[402898989,1768961435586,-3022.9935,0.00017699,2]
[402898990,1768961435595,-151.0,0.00017712,2]
[402898991,1768961435604,-500.0,0.00017715,2]
[402898992,1768961435613,-150.0,0.00017715,2]
[402898993,1768961435622,-150.0,0.00017715,2]
[402898994,1768961435631,-150.0,0.00017715,2]
[402898995,1768961435640,-150.37777066,0.00017715,2]
[402898996,1768961435650,-500.0,0.00017715,2]
[402898997,1768961435662,-500.0,0.00017715,2]
[402898998,1768961435671,-500.0,0.00017715,2]
[402898999,1768961435681,-154.18861438,0.00017715,2]
[402899000,1768961435690,-150.0,0.00017715,2]
[402899001,1768961435701,-153.88302292,0.00017715,2]
[402899002,1768961435711,-500.0,0.00017715,2]
[402899003,1768961435721,-500.0,0.00017715,2]
[402899004,1768961435731,-154.42470961,0.00017715,2]
[402899005,1768961435741,-500.0,0.00017715,2]
[402899006,1768961435749,-500.0,0.00017715,2]
[402899007,1768961435759,-150.0,0.00017715,2]
[402899008,1768961435768,-150.0,0.00017715,2]
[402899009,1768961435777,-618.0,0.00017715,2]
[402899010,1768961435787,-150.0,0.00017715,2]
[402899011,1768961435796,-150.0,0.00017715,2]
[402899012,1768961435805,-150.0,0.00017715,2]
[402899013,1768961435814,-500.0,0.00017715,2]
[402899014,1768961435823,-150.0,0.00017715,2]
[402899015,1768961435832,-500.0,0.00017715,2]
[402899016,1768961435841,-150.0,0.00017715,2]
[402899017,1768961435850,-150.0,0.00017715,2]
[402899018,1768961435859,-150.0,0.00017715,2]
[402899019,1768961435868,-150.0,0.00017715,2]
[402899020,1768961435877,-150.0,0.00017715,2]
[402899021,1768961435887,-150.0,0.00017715,2]
[402899022,1768961435896,-150.0,0.00017715,2]
[402899023,1768961435905,-500.0,0.00017715,2]
[402899024,1768961435915,-213.01214194,0.00017715,2]
[402899025,1768961435924,-150.0,0.00017715,2]
[402899026,1768961435934,-500.0,0.00017715,2]
[402899027,1768961435943,-150.0,0.00017715,2]
[402899028,1768961435952,-150.0,0.00017715,2]
[402899029,1768961435961,-500.0,0.00017715,2]
[402899030,1768961435970,-500.0,0.00017715,2]
[402899031,1768961435980,-500.0,0.00017715,2]
[402899032,1768961435989,-202.41078279,0.00017715,2]
[402899033,1768961435999,-3816.81,0.00017728,2]
[402899034,1768961436008,-150.99,0.00017728,2]
[402899035,1768961436017,-442.93,0.00017728,2]
[402899036,1768961436027,-299.99,0.00017728,4]
[402899037,1768961436037,-150.99,0.00017728,2]
[402899038,1768961436047,-999.99,0.00017728,2]
[402899039,1768961436056,-501.83431676,0.00017734,2]
[402899040,1768961436066,-500.2174233,0.0001777,2]
[402899041,1768961436076,-150.0,0.0001777,2]
[402899042,1768961436085,-150.0,0.0001777,2]
[402899043,1768961436094,-150.0,0.0001777,2]
[402899044,1768961436104,-501.91111703,0.0001777,2]
[402899045,1768961436113,-500.0,0.0001777,2]
[402899046,1768961436123,-500.0,0.0001777,2]
[402899047,1768961436132,-150.0,0.0001777,2]
[402899048,1768961436141,-500.0,0.0001777,2]
[402899049,1768961436151,-500.0,0.0001777,2]
[402899050,1768961436160,-556.57470924,0.0001777,2]
[402899051,1768961436170,-500.0,0.0001777,2]
[402899052,1768961436179,-150.0,0.0001777,2]
[402899053,1768961436188,-150.0,0.0001777,2]
[402899054,1768961436197,-618.0,0.0001777,2]
[402899055,1768961436206,-150.0,0.0001777,2]
[402899056,1768961436215,-150.0,0.0001777,2]
[402899057,1768961436225,-151.51712496,0.0001777,2]
[402899058,1768961436234,-500.0,0.0001777,2]
[402899059,1768961436243,-154.43134248,0.0001777,2]
[402899060,1768961436252,-500.0,0.0001777,2]
[402899061,1768961436261,-150.0,0.0001777,2]
[402899062,1768961436270,-206.05854143,0.0001777,2]
[402899063,1768961436279,-150.0,0.0001777,2]
[402899064,1768961436288,-150.22677621,0.0001777,2]
[402899065,1768961436298,-150.0,0.0001777,2]
[402899066,1768961436307,-500.0,0.0001777,2]
[402899067,1768961436316,-150.0,0.0001777,2]
[402899068,1768961436326,-567.84612353,0.0001777,2]
[402899069,1768961436335,-150.24743935,0.0001777,2]
[402899070,1768961436344,-155.14135053,0.0001777,2]
[402899071,1768961436353,-500.0,0.0001777,2]
[402899072,1768961436361,-500.0,0.0001777,2]
[402899073,1768961436371,-500.87622603,0.0001777,2]
[402899074,1768961436379,-250.0,0.0001777,2]
[402899075,1768961436388,-250.0,0.0001777,2]
[402899076,1768961436397,-250.0,0.0001777,2]
[402899077,1768961436407,-909.04,0.00017792,2]
[402899078,1768961436416,-150.0,0.00017808,2]
[402899079,1768961436425,-500.0,0.00017808,2]
[402899080,1768961436434,-150.0,0.00017825,2]
[402899081,1768961436443,-154.2959151,0.00017825,2]
[402899082,1768961436451,-150.16637933,0.00017825,2]
[402899083,1768961436460,-501.53135455,0.00017825,2]
[402899084,1768961436469,-358.62409232,0.00017825,2]
[402899085,1768961436478,-150.17782386,0.00017825,2]
[402899086,1768961436487,-500.0,0.00017825,2]
[402899087,1768961436496,-500.0,0.00017825,2]
[402899088,1768961436506,-500.0,0.00017825,2]
[402899089,1768961436515,-150.6110538,0.00017825,2]
[402899090,1768961436523,-618.0,0.00017825,2]
[402899091,1768961436532,-152.42052684,0.00017825,2]
[402899092,1768961436541,-208.85848259,0.00017825,2]
[402899093,1768961436551,-158.93887309,0.00017825,2]
[402899094,1768961436560,-519.87615999,0.00017825,2]
[402899095,1768961436569,-203.83590733,0.00017825,2]
[402899096,1768961436578,-514.34037377,0.00017825,2]
[402899097,1768961436587,-150.0,0.00017825,2]
[402899098,1768961436596,-150.0,0.00017825,2]
[402899099,1768961436605,-501.80153097,0.00017825,2]
[402899100,1768961436615,-150.0,0.00017825,2]
[402899101,1768961436624,-500.0,0.00017825,2]
[402899102,1768961436633,-500.0,0.00017825,2]
[402899103,1768961436643,-200.0,0.00017856,2]
[402899104,1768961436653,-500.0,0.00017863,2]
[402899105,1768961436666,-150.0,0.00017879,2]
[402899106,1768961436675,-500.0,0.00017879,2]
[402899107,1768961436684,-505.71563509,0.00017879,2]
[402899108,1768961436694,-500.0,0.00017879,2]
[402899109,1768961436703,-618.0,0.00017879,2]
[402899110,1768961436712,-150.0,0.00017879,2]
[402899111,1768961436721,-215.57436998,0.00017879,2]
[402899112,1768961436731,-150.0,0.00017879,2]
[402899113,1768961436741,-559.72129913,0.00017896,2]
[402899114,1768961436750,-254.12384802,0.000179,2]
[402899115,1768961436759,-500.0,0.000179,2]
[402899116,1768961436768,-500.0,0.00017918,2]
[402899117,1768961436777,-501.92446955,0.00017921,2]
[402899118,1768961436786,-1001.88969616,0.00017921,2]
[402899119,1768961436795,-381.09,0.00017926,2]
[402899120,1768961436804,-150.0,0.00017934,2]
[402899121,1768961436813,-500.0,0.00017934,2]
[402899122,1768961436822,-500.0,0.00017934,2]
[402899123,1768961436831,-618.0,0.00017934,2]
[402899124,1768961436840,-150.0,0.00017934,2]
[402899125,1768961436849,-200.89803092,0.00017934,2]
[402899126,1768961436858,-231.61337073,0.00017937,2]
[402899127,1768961436867,-420.0,0.00017943,2]
[402899128,1768961436876,-420.0,0.00017943,2]
[402899129,1768961436886,-200.0,0.00017972,2]
[402899130,1768961436895,-1195.774,0.00017973,2]
[402899131,1768961436906,-502.71709312,0.00017982,2]
[402899132,1768961436915,-250.0,0.00017989,2]
[402899133,1768961436924,-427.0,0.00017989,2]
[402899134,1768961436933,-500.0,0.00017989,2]
[402899135,1768961436943,-618.0,0.00017989,2]
[402899136,1768961436952,-250.0,0.00017989,2]
[402899137,1768961436961,-634.31128777,0.00017989,2]
[402899138,1768961436971,-504.35391861,0.00017989,2]
[402899139,1768961436980,-500.0,0.00017989,2]
[402899140,1768961436990,-500.0,0.00017989,2]
[402899141,1768961437000,-500.0,0.00017989,2]
[402899142,1768961437009,-173.9482651,0.00017989,2]
[402899143,1768961437020,-500.0,0.00017989,2]
[402899144,1768961437030,-522.01012098,0.00017989,2]
[402899145,1768961437040,-500.0,0.00017989,2]
[402899146,1768961437049,-162.27765986,0.0001799,2]
[402899147,1768961437059,-151.0,0.00017997,2]
[402899148,1768961437069,-151.0,0.00017997,2]
[402899149,1768961437078,-197.52811326,0.00017997,2]
[402899150,1768961437088,-500.0,0.00017998,2]
[402899151,1768961437097,-514.33402237,0.00017998,2]
[402899152,1768961437106,-254.10645391,0.00017999,2]
[402899153,1768961437116,-199.60395493,0.00017999,2]
[402899154,1768961437125,-500.0,0.00017999,2]
[402899155,1768961437134,-282.32126349,0.00017999,2]
[402899156,1768961437144,-500.0,0.00017999,2]
[402899157,1768961437157,-500.0,0.00017999,2]
[402899158,1768961437166,-500.0,0.00017999,2]
[402899159,1768961437175,-500.0,0.00017999,2]
[402899160,1768961437184,-500.0,0.00017999,2]
[402899161,1768961437194,-519.823686,0.00017999,2]
[402899162,1768961437203,-515.40086122,0.00017999,2]
[402899163,1768961437212,-500.0,0.00017999,2]
[402899164,1768961437221,-500.0,0.00017999,2]
[402899165,1768961437230,-518.46700262,0.00017999,2]
[402899166,1768961437240,-500.0,0.00017999,2]
[402899167,1768961437249,-500.0,0.00017999,2]
[402899168,1768961437258,-538.04406385,0.00017999,2]
[402899169,1768961437267,-500.0,0.00017999,2]
[402899170,1768961437277,-500.0,0.00017999,3]
[402899171,1768961437285,-500.0,0.00017999,4]
[402899172,1768961437294,-500.0,0.00017999,5]
[402899173,1768961437303,-500.0,0.00017999,6]
[402899174,1768961437313,-500.0,0.00017999,7]
[402899175,1768961437322,-500.0,0.00017999,8]
[402899176,1768961437331,-500.0,0.00017999,9]
[402899177,1768961437340,-500.0,0.00017999,10]
[402899178,1768961437349,-500.0,0.00017999,11]
[402899179,1768961437358,-500.0,0.00017999,12]
[402899180,1768961437368,-500.0,0.00017999,13]
[402899181,1768961437377,-555.5,0.00017999,14]
[402899182,1768961437387,-500.0,0.00017999,2]
[402899183,1768961437396,-565.38922641,0.00017999,2]
[402899184,1768961437410,-583.83018315,0.00017999,2]
[402899185,1768961437419,-1221445.99065535,0.00018,2]
[402899186,1768961437428,-1401.62327149,0.00018,2]
[402899187,1768961437438,-154.2801591,0.00018,2]
[402899188,1768961437447,-200.0,0.00018,2]
[402899189,1768961437456,-2367.8481157,0.00018,2]
[402899190,1768961437466,-200.0,0.00018,2]
[402899191,1768961437475,-14200.3912968,0.00018,2]
[402899192,1768961437484,-151.0,0.00018,2]
[402899193,1768961437493,-151.0,0.00018,2]
[402899194,1768961437502,-1079.8,0.00018029,2]
[402899195,1768961437511,-191.22,0.00018032,2]
[402899196,1768961437520,-1680.0,0.00018033,2]
[402899197,1768961437529,-279.94626957,0.00018044,2]
[402899198,1768961437538,-618.0,0.00018044,2]
[402899199,1768961437547,-168.74218291,0.00018049,2]
[402899200,1768961437556,-250.0,0.00018061,2]
[402899201,1768961437565,-195.0,0.00018061,2]
[402899202,1768961437574,-195.0,0.00018061,2]
[402899203,1768961437583,-300.0,0.00018061,2]
[402899204,1768961437592,-300.0,0.00018062,2]
[402899205,1768961437602,-2500.0,0.00018062,2]
[402899207,1768961437611,-250.0,0.00018062,2]
[402899208,1768961437620,-691.0058,0.00018062,2]
[402899209,1768961437629,-300.0,0.00018062,2]
[402899210,1768961437638,-2500.0,0.00018063,2]
[402899211,1768961437647,-247.32404547,0.00018063,2]
[402899212,1768961437661,-195.0,0.00018063,2]
[402899213,1768961437670,-600.0,0.00018063,2]
[402899214,1768961437679,-364.1101395,0.00018063,2]
[402899215,1768961437688,-382.46,0.00018064,2]
[402899216,1768961437699,-909.04,0.00018065,2]
[402899217,1768961437708,-500.0,0.00018065,2]
[402899218,1768961437717,-553.64373807,0.00018065,2]
[402899219,1768961437727,-200.0,0.00018065,2]
[402899220,1768961437738,-206.20493208,0.00018065,2]
[402899221,1768961437747,-151.0,0.0001807,2]
[402899222,1768961437757,-152.0,0.0001807,2]
[402899223,1768961437767,-152.0,0.0001807,2]
[402899224,1768961437778,-152.0,0.0001807,2]
[402899225,1768961437789,-152.0,0.0001807,2]
[402899226,1768961437799,-152.0,0.0001807,2]
[402899227,1768961438010,-152.0,0.0001807,2]
[402899228,1768961438021,-152.0,0.0001807,2]
[402899230,1768961438030,-152.0,0.0001807,2]
[402899232,1768961438040,-152.0,0.0001807,2]
[402899234,1768961438050,-152.0,0.0001807,2]
[402899236,1768961438059,-152.0,0.0001807,2]
[402899238,1768961438069,-152.0,0.0001807,2]
[402899240,1768961438079,-152.0,0.0001807,2]
[402899242,1768961438089,-152.0,0.0001807,2]
[402899244,1768961438098,-180.6847777,0.0001807,2]
[402899246,1768961438108,-166.0,0.0001807,2]
[402899247,1768961438119,-166.0,0.0001807,2]
[402899248,1768961438128,-166.0,0.0001807,2]
[402899249,1768961438137,-170.0,0.0001807,2]
[402899250,1768961438147,-1079.8,0.00018074,2]
[402899251,1768961438157,-1264.0,0.00018092,2]
[402899252,1768961438165,-1264.0,0.00018092,2]
[402899253,1768961438175,-152.0,0.00018092,2]
[402899254,1768961438184,-1264.0,0.00018092,2]
[402899255,1768961438193,-151.0,0.00018092,2]
[402899257,1768961438202,-152.0,0.00018092,2]
[402899258,1768961438212,-1264.0,0.00018092,2]
[402899259,1768961438221,-152.0,0.00018092,2]
[402899260,1768961438230,-1264.0,0.00018092,2]
[402899261,1768961438239,-151.0,0.00018092,2]
[402899262,1768961438249,-152.0,0.00018092,2]
[402899263,1768961438259,-151.66723133,0.00018092,2]
[402899264,1768961438268,-1264.0,0.00018092,2]
[402899265,1768961438277,-152.0,0.00018092,2]
[402899267,1768961438286,-152.0,0.00018092,2]
[402899269,1768961438296,-1264.0,0.00018092,2]
[402899271,1768961438305,-152.0,0.00018092,2]
[402899273,1768961438314,-1264.0,0.00018092,2]
[402899275,1768961438324,-1264.0,0.00018092,2]
[402899277,1768961438333,-166.0,0.00018092,2]
[402899279,1768961438343,-158.0,0.00018092,2]
[402899281,1768961438352,-158.0,0.00018092,2]
[402899283,1768961438360,-158.0,0.00018092,2]
[402899285,1768961438370,-158.0,0.00018092,2]
[402899287,1768961438379,-618.0,0.00018099,2]
[402899289,1768961438388,-151.0,0.00018139,2]
[402899291,1768961438397,-151.0,0.00018139,2]
[402899293,1768961438406,-151.0,0.00018139,2]
[402899295,1768961438416,-151.0,0.00018139,2]
[402899297,1768961438425,-151.0,0.00018139,2]
[402899299,1768961438435,-151.0,0.00018139,2]
[402899301,1768961438444,-151.0,0.00018139,2]
[402899304,1768961438454,-151.0,0.00018139,2]
[402899306,1768961438463,-151.0,0.00018139,2]
[402899308,1768961438477,-151.0,0.00018139,2]
[402899310,1768961438488,-151.0,0.00018139,2]
[402899312,1768961438497,-151.0,0.00018139,2]
[402899314,1768961438507,-151.0,0.00018139,2]
[402899316,1768961438516,-618.0,0.00018153,2]
[402899318,1768961438525,-187.78006525,0.00018159,2]
[402899320,1768961438535,-1006.24771702,0.00018168,2]
[402899322,1768961438544,-200.0,0.0001818,2]
[402899324,1768961438554,-594.9,0.00018182,2]
[402899326,1768961438563,-2559.0,0.00018182,2]
[402899328,1768961438571,-908.27,0.000182,2]
[402899330,1768961438580,-618.0,0.00018208,2]
[402899332,1768961438590,-151.0,0.00018217,2]
[402899334,1768961438599,-151.0,0.00018217,2]
[402899336,1768961438608,-151.0,0.00018217,2]
[402899339,1768961438620,-152.0,0.00018217,2]
[402899341,1768961438629,-151.0,0.00018217,2]
[402899343,1768961438639,-152.0,0.00018217,2]
[402899344,1768961438648,-151.0,0.00018217,2]
[402899347,1768961438660,-152.0,0.00018217,2]
[402899348,1768961438670,-152.0,0.00018217,2]
[402899351,1768961438680,-151.0,0.00018217,2]
[402899353,1768961438689,-151.0,0.00018217,2]
[402899354,1768961438701,-152.0,0.00018217,2]
[402899357,1768961438710,-151.0,0.00018217,2]
[402899359,1768961438720,-152.0,0.00018217,2]
[402899361,1768961438729,-151.0,0.00018217,2]
[402899363,1768961438741,-152.0,0.00018217,2]
[402899365,1768961438751,-151.0,0.00018217,2]
[402899367,1768961438760,-151.0,0.00018217,2]
[402899368,1768961438772,-152.0,0.00018217,2]
[402899371,1768961438781,-151.0,0.00018217,2]
[402899372,1768961438791,-152.0,0.00018217,2]
[402899374,1768961438800,-151.0,0.00018217,2]
[402899376,1768961438809,-151.0,0.00018217,2]
[402899379,1768961438819,-1264.0,0.00018217,2]
[402899381,1768961438828,-151.0,0.00018217,2]
[402899383,1768961438838,-151.0,0.00018217,2]
[402899384,1768961438847,-1264.0,0.00018217,2]
[402899386,1768961438856,-151.0,0.00018217,2]
[402899388,1768961438866,-151.71388192,0.00018217,2]
[402899391,1768961438879,-1264.0,0.00018217,2]
[402899393,1768961438888,-151.0,0.00018217,2]
[402899395,1768961438898,-151.0,0.00018217,2]
[402899397,1768961438908,-151.0,0.00018217,2]
[402899399,1768961438917,-151.0,0.00018217,2]
[402899401,1768961438927,-151.0,0.00018217,2]
[402899403,1768961438937,-151.0,0.00018217,2]
[402899405,1768961438947,-1264.0,0.00018217,2]
[402899407,1768961438957,-151.0,0.00018217,2]
[402899409,1768961438967,-1264.0,0.00018217,2]
[402899411,1768961438976,-151.0,0.00018217,2]
[402899413,1768961438985,-1264.0,0.00018217,2]
[402899415,1768961438995,-151.0,0.00018217,2]
[402899417,1768961439005,-151.0,0.00018217,2]
[402899419,1768961439015,-151.0,0.00018217,2]
[402899421,1768961439024,-1264.0,0.00018217,2]
[402899423,1768961439035,-151.0,0.00018217,2]
[402899425,1768961439045,-151.0,0.00018217,2]
[402899427,1768961439054,-1264.0,0.00018217,2]
[402899429,1768961439064,-151.0,0.00018217,2]
[402899431,1768961439073,-151.0,0.00018217,2]
[402899433,1768961439083,-1264.0,0.00018217,2]
[402899434,1768961439093,-151.0,0.00018217,2]
[402899436,1768961439103,-1264.0,0.00018217,2]
[402899438,1768961439113,-151.0,0.00018217,2]
[402899440,1768961439122,-151.0,0.00018217,2]
[402899442,1768961439133,-1264.0,0.00018217,2]
[402899444,1768961439143,-151.0,0.00018217,2]
[402899445,1768961439153,-151.0,0.00018217,2]
[402899447,1768961439163,-1264.0,0.00018217,2]
[402899449,1768961439173,-151.0,0.00018217,2]
[402899450,1768961439182,-151.0,0.00018217,2]
[402899452,1768961439192,-151.0,0.00018217,2]
[402899453,1768961439201,-1264.0,0.00018217,2]
[402899455,1768961439211,-1264.0,0.00018217,2]
[402899456,1768961439221,-1264.0,0.00018217,2]
[402899458,1768961439233,-1264.0,0.00018217,2]
[402899459,1768961439262,-1264.0,0.00018217,2]
[402899461,1768961439272,-618.0,0.00018263,2]
[402899462,1768961439281,-2559.0,0.00018284,2]
[402899464,1768961439290,-618.0,0.00018318,2]
[402899465,1768961439299,-909.04,0.00018339,2]
[402899467,1768961439308,-618.0,0.00018373,2]
[402899468,1768961439317,-618.0,0.00018427,2]
[402899470,1768961439326,-341.08711977,0.00018432,2]
[402899472,1768961439335,-618.0,0.00018482,2]
[402899473,1768961439344,-618.0,0.00018537,2]
[402899474,1768961439353,-618.0,0.00018592,2]
[402899476,1768961439363,-909.04,0.00018613,2]
[402899478,1768961439372,-500.0,0.00018613,2]
[402899479,1768961439380,-574.12855637,0.00018613,2]
[402899481,1768961439390,-313.94612822,0.00018613,2]
[402899482,1768961439399,-618.0,0.00018647,2]
[402899484,1768961439409,-382.46,0.00018694,2]
[402899486,1768961439418,-618.0,0.00018701,2]